bitfinex/quotes_ETHUSD_20251214
["timestamp","ask_amount","ask_price","bid_price","bid_amount"]
[1765756009121,1.0067,3055.5,3055.1,0.002]
[1765756009439,0.01641982,3055.4,3055.1,0.002]
[1765756012240,0.01641982,3055.2,3055.1,0.002]
[1765756012823,0.49111982,3055.4,3055.1,0.002]
[1765756013230,0.532,3055.5,3055.1,0.002]
[1765756013738,0.1945,3055.9,3055.1,0.002]
[1765756013739,0.532,3055.9,3055.1,0.002]
[1765756014313,0.532,3055.9,3055.1,1.31177183]
[1765756015711,0.4747,3056.2,3055.1,1.31177183]
[1765756015916,0.532,3056.2,3055.2,4.50841782]
[1765756016141,0.01641982,3056.1,3055.1,1.31177183]
[1765756016339,0.01641982,3055.9,3055.2,6.54621628]
[1765756016600,0.001,3055.4,3055.2,6.54621628]
[1765756016924,0.001,3055.4,3055.2,3.27310814]
[1765756016925,0.533,3055.4,3055.2,3.27310814]
[1765756017126,0.48531982,3055.3,3055.2,3.27310814]
[1765756017528,0.95641982,3055.3,3055.2,3.27310814]
[1765756017852,0.4689,3055.3,3055.2,3.27310814]
[1765756018053,0.533,3055.4,3055.2,3.27310814]
[1765756018351,0.533,3055.4,3055.1,3.27511692]
[1765756018352,0.533,3055.4,3055.1,0.002]
[1765756018554,0.4689,3055.2,3055.1,0.002]
[1765756019055,0.94,3055.2,3055.1,0.002]
[1765756020359,1.41623229,3055.2,3055.1,0.002]
[1765756020530,0.4689,3055.2,3055.1,0.002]
[1765756020733,0.533,3055.4,3055.1,0.002]
[1765756020734,0.001,3055.4,3055.1,0.002]
[1765756020936,0.532,3055.3,3055.1,0.002]
[1765756021538,0.54841982,3055.3,3055.1,0.002]
[1765756021967,0.532,3055.3,3055.1,0.002]
[1765756022177,0.001,3055.4,3055.1,0.002]
[1765756025583,0.001,3055.4,3055.2,4.50841782]
[1765756025742,0.001,3055.4,3055.3,0.45104178]
[1765756025942,0.001,3055.4,3055.3,1.03151707]
[1765756026153,0.001,3055.4,3055.3,1.53081743]
[1765756026443,0.001,3055.4,3055.3,4.80381844]
[1765756026775,0.001,3055.4,3055.3,4.30451808]
[1765756027176,0.001,3055.4,3055.3,5.20932244]
[1765756027557,0.001,3055.4,3055.3,4.71002208]
[1765756029360,0.001,3055.4,3055.3,24.77051278]
[1765756029676,0.001,3055.4,3055.3,22.87738744]
[1765756030371,0.001,3055.4,3055.3,24.28380644]
[1765756030566,0.001,3055.4,3055.3,15.16010408]
[1765756030741,0.001,3055.4,3055.3,15.65940444]
[1765756031141,0.001,3055.4,3055.3,11.39917244]
[1765756031352,0.001,3055.4,3055.3,12.84317244]
[1765756031850,0.001,3055.4,3055.3,6.77437208]
[1765756032068,0.001,3055.4,3055.3,7.80467244]
[1765756032377,0.001,3055.4,3055.3,8.92217244]
[1765756032948,0.001,3055.4,3055.3,9.40887878]
[1765756033469,0.001,3055.4,3055.3,14.00247244]
[1765756033664,0.001,3055.4,3055.3,13.75937144]
[1765756033866,0.001,3055.4,3055.3,5.74032244]
[1765756034381,0.001,3055.4,3055.3,10.28150307]
[1765756034583,0.001,3055.4,3055.3,10.24877306]
[1765756035395,0.001,3055.4,3055.3,13.43095406]
[1765756035681,0.001,3055.4,3055.3,10.24877306]
[1765756035890,0.001,3055.4,3055.3,13.63745406]
[1765756036620,0.001,3055.4,3055.3,8.73179377]
[1765756037074,0.001,3055.4,3055.3,9.71777306]
[1765756037382,0.001,3055.4,3055.3,22.56331806]
[1765756037689,0.001,3055.4,3055.3,21.84126206]
[1765756037890,0.001,3055.4,3055.3,14.87323106]
[1765756038262,0.001,3055.4,3055.3,19.1999374]
[1765756038470,0.001,3055.4,3055.3,33.1189634]
[1765756039712,0.001,3056.5,3055.3,33.1189634]
[1765756039713,0.001,3056.5,3055.8,0.405504]
[1765756039890,0.001,3056.7,3056.4,24.56891391]
[1765756040214,0.001,3056.7,3056.6,20.06046329]
[1765756040420,0.001,3056.7,3056.6,20.58948553]
[1765756040818,0.001,3056.7,3056.6,21.07619187]
[1765756041523,0.001,3056.7,3056.6,24.34780084]
[1765756042451,0.001,3056.7,3056.6,23.8610945]
[1765756043809,0.001,3056.7,3056.6,14.6929975]
[1765756044523,0.001,3056.7,3056.6,24.3920945]
[1765756045237,0.001,3056.7,3056.6,24.87880084]
[1765756047464,0.001,3056.7,3056.6,5.80431684]
[1765756047661,0.001,3056.7,3056.6,24.87880084]
[1765756048480,0.001,3056.7,3056.6,5.90691222]
[1765756048768,0.001,3057.3,3056.9,0.405504]
[1765756048975,1e-08,3057.9,3057.8,5.49442991]
[1765756049270,1e-08,3057.9,3057.8,6.55345215]
[1765756049479,1e-08,3057.9,3057.8,7.20879737]
[1765756050053,1e-08,3057.9,3057.8,6.67879737]
[1765756050244,1e-08,3057.9,3057.8,9.9501002]
[1765756050439,1e-08,3057.9,3057.8,10.47912244]
[1765756050783,0.63700001,3057.9,3057.8,9.9501002]
[1765756050990,1.13650001,3057.9,3057.8,4.38080036]
[1765756051740,1.13650001,3057.9,3057.8,8.88925098]
[1765756053642,1.13650001,3057.9,3057.8,8.35925098]
[1765756054779,1.12999963,3057.9,3057.8,8.35925098]
[1765756057482,1.12999963,3057.9,3057.8,3.85080036]
[1765756060193,1.12999963,3057.9,3057.8,3.27032507]
[1765756060583,0.001,3058.0,3057.8,3.79934731]
[1765756060897,0.9527,3057.9,3057.8,3.27032507]
[1765756061191,0.9527,3057.9,3057.8,3.27232507]
[1765756061395,0.9537,3057.9,3057.8,3.27232507]
[1765756062192,0.9537,3057.9,3057.8,0.002]
[1765756062496,1.4837,3057.9,3057.8,0.002]
[1765756062690,1.12055,3057.9,3057.8,0.002]
[1765756063595,4.40718794,3057.9,3057.8,0.002]
[1765756063794,1.13696982,3057.9,3057.8,0.002]
[1765756064566,5.39316723,3057.9,3057.8,0.002]
[1765756064771,0.405504,3057.7,3056.5,0.002]
[1765756065000,0.637,3056.6,3056.5,3.27371601]
[1765756065300,0.637,3056.6,3055.5,3.27277913]
[1765756065471,0.4995,3056.5,3055.7,0.58047529]
[1765756065673,0.637,3055.8,3055.7,0.58047529]
[1765756065874,0.637,3055.8,3055.3,0.002]
[1765756066174,0.4532,3055.4,3055.3,3.27500101]
[1765756066673,0.9527,3055.4,3055.3,0.002]
[1765756069641,0.9527,3055.4,3055.2,0.002]
[1765756069839,0.9527,3055.3,3055.2,0.002]
[1765756072097,0.1838,3055.8,3055.2,0.002]
[1765756072098,0.53,3055.7,3055.2,0.002]
[1765756072429,0.4995,3056.2,3055.3,0.52902224]
[1765756072628,0.4995,3056.2,3055.4,13.09157556]
[1765756072926,0.4995,3056.2,3055.5,2.79884687]
[1765756073125,0.4995,3056.2,3055.5,2.26982463]
[1765756073297,0.637,3055.6,3055.5,2.26982463]
[1765756073494,0.53,3056.4,3055.5,2.79884687]
[1765756073703,0.4995,3056.0,3055.5,2.79884687]
[1765756073928,0.53,3056.4,3055.6,1.72117342]
[1765756074231,0.4995,3056.7,3055.7,5.82673706]
[1765756074530,0.1838,3057.0,3055.9,0.405504]
[1765756074728,0.01741982,3057.9,3056.4,0.58047529]
[1765756074930,0.001,3057.9,3056.9,0.4868]
[1765756075447,0.001,3057.9,3056.9,2.04012224]
[1765756075737,0.001,3057.5,3057.0,0.52902224]
[1765756075933,0.001,3057.5,3057.3,0.58047529]
[1765756076097,0.001,3057.5,3057.4,0.53]
[1765756076703,0.001,3057.5,3057.4,4.38122821]
[1765756076910,0.01741982,3058.6,3057.5,0.58047529]
[1765756076911,0.4976,3058.3,3057.5,0.58047529]
[1765756077111,0.3304,3058.6,3057.5,0.58047529]
[1765756077838,0.3304,3058.6,3057.5,1.10949753]
[1765756078334,0.3304,3058.6,3057.6,0.52902224]
[1765756078542,0.001,3058.6,3057.6,1.00072224]
[1765756078743,0.001,3058.6,3057.8,0.58047529]
[1765756078934,0.001,3058.6,3057.8,1.5364156]
[1765756079135,0.3294,3057.9,3057.7,6.54086404]
[1765756079339,0.0022,3057.8,3057.7,3.27043202]
[1765756079719,0.001,3058.6,3057.8,0.58047529]
[1765756080908,0.001,3058.6,3058.0,5.29673706]
[1765756081238,0.001,3058.6,3058.0,0.58047529]
[1765756081415,0.001,3058.6,3058.1,0.529]
[1765756081610,0.001,3058.6,3058.1,1.94803478]
[1765756081824,0.001,3058.6,3058.5,0.4524]
[1765756082025,0.001,3058.6,3058.5,6.27813706]
[1765756082231,0.001,3058.6,3058.5,6.74983706]
[1765756083016,0.001,3058.6,3058.5,10.01941364]
[1765756083234,0.001,3058.6,3058.5,10.71666851]
[1765756085355,0.001,3058.6,3058.5,10.24496851]
[1765756085749,0.001,3058.6,3058.5,10.71666851]
[1765756086748,0.001,3058.6,3058.5,10.24496851]
[1765756086951,0.001,3058.6,3058.5,9.79256851]
[1765756087871,0.2194,3058.6,3058.5,3.26957658]
[1765756088179,0.001,3058.6,3058.5,10.35090835]
[1765756088853,0.001,3058.6,3058.5,9.89591764]
[1765756089058,0.001,3058.6,3058.5,10.42491764]
[1765756089242,0.001,3058.6,3058.5,11.79437939]
[1765756090765,1e-08,3059.4,3058.6,1.45767929]
[1765756090969,1e-08,3059.4,3059.3,5.74913706]
[1765756091154,1e-08,3059.4,3059.3,6.27813706]
[1765756091346,1e-08,3059.4,3059.3,6.92489077]
[1765756091543,1e-08,3059.4,3059.3,10.19361237]
[1765756091988,1e-08,3059.4,3059.3,9.74121237]
[1765756092479,0.21840001,3059.4,3059.3,3.84919689]
[1765756092673,0.54670001,3059.4,3059.3,3.84919689]
[1765756093608,0.21840001,3059.4,3059.3,3.84919689]
[1765756094176,0.54670001,3059.4,3059.3,3.2687216]
[1765756095689,0.54670001,3059.4,3058.5,0.58047529]
[1765756095889,0.34581982,3059.3,3058.5,0.58047529]
[1765756096088,0.3641,3058.6,3058.5,0.58047529]
[1765756096414,0.3641,3058.6,3058.4,6.53936698]
[1765756096713,0.3294,3059.1,3058.5,0.58047529]
[1765756097117,0.1457,3059.2,3058.5,0.58047529]
[1765756097317,0.1457,3059.2,3058.5,1.58117529]
[1765756097504,1e-08,3059.4,3058.8,4.71626177]
[1765756097704,1e-08,3059.4,3058.9,9.80744712]
[1765756098203,1e-08,3059.4,3058.9,11.58674367]
[1765756099691,1e-08,3059.4,3058.9,12.58744367]
[1765756099894,1e-08,3059.4,3059.0,0.4717]
[1765756100096,1e-08,3059.4,3059.3,5.93853706]
[1765756100295,0.001,3060.2,3059.3,5.93853706]
[1765756100296,1e-08,3060.1,3059.4,0.58047529]
[1765756100485,1e-08,3060.1,3059.6,0.4524]
[1765756100707,1e-08,3060.1,3059.9,0.58047529]
[1765756101018,1e-08,3060.1,3060.0,4.56285529]
[1765756101218,1e-08,3060.1,3060.0,4.39267529]
[1765756101388,0.001,3061.1,3060.0,4.39267529]
[1765756101389,0.001,3061.1,3060.1,1.24157529]
[1765756101591,0.001,3061.1,3060.6,9.8019996]
[1765756101809,0.001,3061.1,3060.6,10.3299996]
[1765756102123,0.001,3061.1,3060.7,0.58047529]
[1765756102323,0.001,3061.1,3060.6,3.2673332]
[1765756102324,0.1456,3060.7,3060.6,3.2673332]
[1765756102715,0.001,3061.1,3060.6,9.8019996]
[1765756102912,0.1456,3061.0,3060.7,0.58047529]
[1765756103226,0.1466,3061.1,3060.7,0.58047529]
[1765756103998,0.1466,3061.1,3060.8,6.5342394]
[1765756103999,0.001,3061.1,3060.8,6.5342394]
[1765756104496,0.1456,3060.9,3060.8,3.2671197]
[1765756104822,0.1456,3060.9,3060.7,3.267207]
[1765756105131,0.001,3061.1,3060.7,6.53439917]
[1765756105350,0.1456,3060.8,3060.7,3.26717272]
[1765756105498,0.1456,3060.8,3060.7,3.26722645]
[1765756105822,0.2912,3060.8,3060.5,3.26734879]
[1765756105994,0.2912,3060.8,3060.0,6.5359477]
[1765756106195,0.1456,3060.4,3060.0,6.5359477]
[1765756106395,0.1456,3060.7,3059.9,3.26806217]
[1765756106396,0.1456,3060.1,3059.9,3.26806217]
[1765756106851,0.1456,3060.0,3059.9,3.26806217]
[1765756107528,0.16201982,3060.8,3059.9,6.53614282]
[1765756108314,0.16201982,3060.8,3059.7,6.53658854]
[1765756108635,0.01641982,3060.6,3059.7,6.53658854]
[1765756108834,0.01641982,3060.6,3059.1,0.4554]
[1765756108835,0.1456,3059.8,3059.6,3.26838846]
[1765756108992,0.01641982,3060.4,3059.6,3.26838846]
[1765756108993,0.01641982,3060.2,3059.6,3.26838846]
[1765756109195,0.1456,3059.7,3059.6,3.26838846]
[1765756109599,0.01641982,3060.8,3059.6,11.39227071]
[1765756109793,0.58147529,3061.1,3059.6,14.2052718]
[1765756110116,0.16201982,3061.0,3059.7,0.4554]
[1765756110425,0.01641982,3060.6,3059.6,7.19046962]
[1765756110630,0.32999746,3060.6,3059.6,10.91427071]
[1765756110831,0.01641982,3060.8,3059.6,7.19046962]
[1765756111004,0.1456,3060.5,3059.6,6.53678955]
[1765756111849,0.1456,3059.7,3059.6,3.26838846]
[1765756112138,0.1456,3059.7,3059.6,3.26840109]
[1765756112333,0.2912,3059.7,3058.8,6.53846702]
[1765756112506,0.1456,3059.5,3058.8,6.53846702]
[1765756112708,3.28439425,3060.0,3058.8,6.53846702]
[1765756112709,0.1456,3059.6,3058.8,6.53846702]
[1765756113134,0.1456,3059.6,3058.8,9.80772293]
[1765756113333,0.1456,3059.6,3058.9,0.58247529]
[1765756114905,0.1456,3059.6,3059.0,6.53808434]
[1765756116545,0.01641982,3060.1,3059.0,10.51918247]
[1765756116710,0.528,3060.3,3059.1,0.6542]
[1765756117040,0.1456,3060.2,3059.2,9.80648535]
[1765756117207,0.1456,3060.2,3059.2,13.0753138]
[1765756117410,0.528,3060.3,3059.3,1.78281138]
[1765756117606,0.1456,3060.6,3059.3,2.36328667]
[1765756117812,0.6736,3060.8,3059.5,4.70764236]
[1765756118040,0.01641982,3060.5,3059.3,1.90788667]
[1765756118244,0.01641982,3060.5,3059.3,0.58047529]
[1765756118558,0.01641982,3060.3,3059.3,0.58047529]
[1765756118760,0.1456,3060.4,3059.3,0.58047529]
[1765756119049,0.1456,3060.4,3059.4,9.80584428]
[1765756119356,0.01641982,3060.5,3059.4,6.53722952]
[1765756119541,0.01641982,3060.5,3059.4,9.80584428]
[1765756119849,0.16201982,3060.5,3059.4,10.26124428]
[1765756120346,0.16201982,3060.5,3059.4,9.80584428]
[1765756120850,0.54713869,3060.5,3059.4,9.80584428]
[1765756121247,0.54713869,3060.5,3059.4,10.26124428]
[1765756121248,0.1456,3060.5,3059.4,10.26124428]
[1765756121549,3.28433894,3061.0,3059.7,4.49869952]
[1765756121550,0.001,3061.0,3059.7,4.49869952]
[1765756121915,0.001,3061.0,3060.2,4.49869952]
[1765756122230,0.001,3061.0,3060.3,0.6542]
[1765756122959,0.001,3061.0,3060.4,0.4554]
[1765756123166,0.001,3061.0,3060.5,9.80231988]
[1765756123824,0.001,3061.0,3060.5,10.25771988]
[1765756124266,0.001,3061.0,3060.9,0.478]
[1765756124625,0.001,3061.0,3060.9,0.9334]
[1765756125044,0.001,3061.0,3060.9,4.78088826]
[1765756125339,0.001,3061.0,3060.9,6.14640773]
[1765756126337,0.001,3061.0,3060.9,5.21300773]
[1765756127656,0.001,3061.0,3060.9,6.14640773]
[1765756131603,0.001,3061.0,3060.9,6.55191173]
[1765756131806,0.001,3061.0,3060.9,7.00742656]
[1765756132363,0.001,3061.0,3060.9,7.07891173]
[1765756133273,0.001,3061.0,3060.9,6.21800773]
[1765756133789,0.001,3061.0,3060.9,4.85248826]
[1765756134008,0.001,3061.0,3060.9,3.84748826]
[1765756139035,0.001,3061.0,3060.9,3.84948826]
[1765756139393,0.001,3061.0,3060.9,4.34448826]
[1765756141221,0.001,3061.0,3060.9,4.79608826]
[1765756141397,0.001,3061.0,3060.9,6.0522802]
[1765756141906,0.001,3061.0,3060.9,5.1056802]
[1765756142119,0.001,3061.0,3060.9,5.6006802]
[1765756142319,0.001,3061.0,3060.9,6.0522802]
[1765756143108,0.001,3061.0,3060.9,5.6006802]
[1765756144118,0.1466,3061.0,3060.9,3.26901297]
[1765756144550,0.001,3061.0,3060.9,8.71431249]
[1765756144750,0.001,3061.0,3060.9,9.29478778]
[1765756144960,0.001,3061.0,3060.9,8.84318778]
[1765756146031,0.001,3061.0,3060.9,9.29478778]
[1765756146238,0.001,3061.0,3060.9,10.60367972]
[1765756146463,0.001,3061.0,3060.2,0.83604368]
[1765756146464,0.2922,3061.0,3060.2,3.26774398]
[1765756146646,0.1436,3060.3,3059.7,6.53658854]
[1765756146840,0.405504,3060.8,3059.7,6.53658854]
[1765756147052,0.1436,3059.8,3059.7,3.26829427]
[1765756147245,0.1436,3059.8,3059.6,3.27037084]
[1765756147446,0.1436,3059.7,3059.6,0.002]
[1765756147662,0.1436,3059.7,3059.6,3.27040109]
[1765756148281,0.1436,3059.7,3059.6,0.002]
[1765756148657,0.13429431,3059.7,3059.6,0.002]
[1765756149238,0.1343,3059.7,3059.6,0.002]
[1765756150248,0.1343,3060.2,3059.6,0.002]
[1765756151675,0.58047529,3060.7,3059.6,0.002]
[1765756151873,0.1343,3060.7,3059.6,4.95213144]
[1765756152071,0.1343,3060.7,3059.7,1.12838843]
[1765756152279,0.1343,3060.7,3059.7,1.57998843]
[1765756152571,0.1343,3060.7,3059.8,9.8122425]
[1765756152773,0.001,3061.0,3060.6,4.49853144]
[1765756153305,0.001,3061.0,3060.9,0.495]
[1765756153773,0.001,3061.0,3060.9,0.9466]
[1765756154544,0.001,3061.0,3060.9,4.21361297]
[1765756154987,0.001,3061.0,3060.9,3.76201297]
[1765756155195,0.001,3061.0,3060.9,4.57567523]
[1765756155490,0.1353,3061.0,3060.9,3.26701297]
[1765756156390,0.001,3061.0,3060.9,3.26701297]
[1765756156951,0.001,3061.0,3060.8,3.2671197]
[1765756157363,0.001,3061.0,3060.9,0.9466]
[1765756157661,0.001,3061.0,3060.8,3.2671197]
[1765756157871,0.001,3061.0,3060.8,4.42844578]
[1765756158076,0.001,3061.0,3060.8,4.88004578]
[1765756158253,0.001,3061.0,3060.9,0.495]
[1765756158652,0.001,3061.0,3060.8,4.42844578]
[1765756160691,0.001,3061.0,3060.8,3.2691197]
[1765756160692,0.1343,3060.9,3060.8,3.2691197]
[1765756161094,0.1343,3060.9,3060.8,0.002]
[1765756161095,0.2686,3060.9,3060.8,0.002]
[1765756163101,3.53561297,3060.9,3060.8,0.002]
[1765756163309,4.11608826,3060.9,3060.8,0.002]
[1765756163510,4.85622859,3060.9,3060.8,0.002]
[1765756163865,2.11621562,3060.9,3060.8,0.002]
[1765756164186,5.39964841,3060.9,3060.8,0.002]
[1765756167595,1.60563544,3060.9,3060.8,0.002]
[1765756167803,0.59689511,3060.9,3060.8,0.002]
[1765756168098,0.6613,3060.9,3060.8,0.002]
[1765756168995,0.001,3061.0,3060.8,0.002]
[1765756169512,0.001,3061.0,3060.9,0.4808]
[1765756169869,0.001,3061.0,3060.9,0.9616]
[1765756170400,0.001,3061.0,3060.9,4.22861297]
[1765756170590,0.001,3061.0,3060.9,4.97838735]
[1765756171107,3.28294592,3062.3,3061.0,1.54207529]
[1765756171108,0.001,3062.3,3061.0,1.54207529]
[1765756171305,0.001,3062.3,3061.5,4.49853144]
[1765756171692,0.001,3062.3,3061.5,4.97933144]
[1765756171897,0.001,3062.3,3061.6,0.49793314]
[1765756172075,0.001,3062.3,3061.8,0.4808]
[1765756172274,0.001,3062.3,3061.8,3.74685264]
[1765756172479,0.001,3062.3,3061.8,3.26605264]
[1765756173606,0.001,3062.3,3061.8,3.74685264]
[1765756173912,0.001,3062.3,3061.8,4.97874887]
[1765756178700,0.001,3062.3,3061.8,5.38425287]
[1765756179099,0.001,3062.3,3061.8,5.96472816]
[1765756179294,0.001,3062.3,3061.8,6.41792537]
[1765756179498,0.001,3062.3,3061.8,10.66093644]
[1765756179882,0.001,3062.3,3061.8,11.54467333]
[1765756180110,0.001,3062.3,3061.8,11.11413365]
[1765756181084,0.001,3062.3,3061.8,10.66093644]
[1765756181914,0.001,3062.3,3061.8,11.11413365]
[1765756183508,0.001,3062.3,3061.8,10.66093644]
[1765756183889,0.001,3062.3,3061.8,11.18693644]
[1765756184689,0.001,3062.3,3061.8,6.49072816]
[1765756184891,0.001,3062.3,3061.8,5.07842416]
[1765756185908,0.1373,3061.9,3061.8,3.26605264]
[1765756186296,0.001,3061.9,3061.8,3.26605264]
[1765756186915,0.001,3061.9,3061.6,6.53244256]
[1765756187232,0.001,3061.9,3061.8,0.4808]
[1765756188203,0.001,3061.9,3061.8,0.9616]
[1765756188403,0.001,3061.9,3061.8,1.71100426]
[1765756189043,0.001,3061.9,3061.8,5.55753219]
[1765756189208,0.001,3061.9,3061.8,6.52169671]
[1765756189529,0.001,3061.9,3061.8,6.48903619]
[1765756191124,0.001,3061.9,3061.8,22.0847714]
[1765756192104,0.001,3061.9,3061.8,24.31928308]
[1765756192412,0.001,3061.9,3061.8,27.4170781]
[1765756192614,0.001,3061.9,3061.8,15.4216621]
[1765756192816,0.001,3061.9,3061.8,13.2838171]
[1765756193022,0.001,3061.9,3061.8,14.8190941]
[1765756193208,0.001,3061.9,3061.8,13.6078171]
[1765756193511,0.001,3061.9,3061.8,11.1845531]
[1765756193702,0.001,3061.9,3061.8,4.59593219]
[1765756193905,0.001,3061.9,3061.8,3.26605264]
[1765756194101,0.1373,3061.9,3061.8,3.26605264]
[1765756194404,0.1373,3061.9,3061.8,3.84652793]
[1765756195718,0.1373,3061.9,3061.8,3.26605264]
[1765756195938,0.2736,3061.9,3061.8,3.26605264]
[1765756197020,0.2736,3061.9,3061.5,0.58047529]
[1765756197324,0.1363,3061.7,3061.5,0.58047529]
[1765756197621,0.1363,3061.6,3061.4,0.58047529]
[1765756198632,0.001,3061.9,3061.5,0.4923]
[1765756199351,0.001,3061.9,3061.6,6.532532]
[1765756199850,0.1363,3061.7,3061.6,3.266266]
[1765756200214,0.2726,3061.7,3061.6,3.266266]
[1765756200516,0.1363,3061.7,3061.5,3.26635486]
[1765756200716,0.001,3061.9,3061.5,6.53272755]
[1765756200915,0.1363,3061.6,3061.5,3.26635486]
[1765756201334,0.2726,3061.6,3061.5,3.26635486]
[1765756201544,0.2726,3061.6,3061.4,3.26645046]
[1765756201545,0.2726,3061.6,3061.2,6.5333856]
[1765756201708,0.1363,3061.3,3061.0,0.002]
[1765756201910,0.1363,3061.1,3061.0,0.002]
[1765756202240,0.01741982,3061.9,3061.2,3.2666928]
[1765756202541,0.1363,3061.3,3061.2,3.2666928]
[1765756203326,0.1363,3061.7,3061.2,6.5333856]
[1765756203530,0.1363,3061.3,3061.0,0.002]
[1765756205238,0.1363,3061.1,3061.0,0.002]
[1765756205745,0.2726,3061.1,3061.0,0.002]
[1765756206040,0.1363,3061.1,3061.0,0.002]
[1765756207126,0.2726,3061.1,3061.0,0.002]
[1765756207434,0.1363,3061.1,3061.0,0.002]
[1765756207616,0.54241982,3061.7,3061.0,0.002]
[1765756207806,0.1363,3061.1,3061.0,0.002]
[1765756208645,0.6623,3061.7,3061.0,0.002]
[1765756209143,0.1363,3061.7,3061.0,0.002]
[1765756209506,0.001,3061.9,3061.0,0.002]
[1765756209713,0.001,3061.9,3061.2,9.8000784]
[1765756210016,0.1363,3061.8,3061.2,6.5333856]
[1765756210214,0.1363,3061.3,3061.2,3.2666928]
[1765756211343,0.1363,3061.8,3061.2,6.5333856]
[1765756211638,0.01741982,3061.9,3061.2,9.8000784]
[1765756212042,0.15371982,3061.9,3061.2,9.8000784]
[1765756213743,0.15371982,3061.9,3061.2,3.2666928]
[1765756213948,0.1363,3061.3,3061.1,6.53359902]
[1765756214159,0.1373,3061.9,3061.1,9.80039853]
[1765756214321,0.001,3061.9,3061.2,1.84758424]
[1765756216137,0.001,3061.9,3061.8,0.4923]
[1765756216338,0.001,3061.9,3061.4,0.58047529]
[1765756216651,0.001,3061.9,3061.5,0.4836]
[1765756217815,0.001,3061.9,3061.8,0.4923]
[1765756218051,0.001,3061.9,3061.8,4.32973433]
[1765756218347,0.001,3061.9,3061.8,5.39380962]
[1765756220426,0.001,3061.9,3061.8,5.79931362]
[1765756221222,0.001,3061.9,3061.8,6.25251083]
[1765756221457,0.001,3061.9,3061.8,6.28517135]
[1765756221768,0.001,3061.9,3061.8,24.90645814]
[1765756222053,0.001,3061.9,3061.8,20.83340262]
[1765756222751,0.001,3061.9,3061.8,22.60545883]
[1765756222947,0.001,3061.9,3061.8,23.10545883]
[1765756223763,0.001,3061.9,3061.8,20.72048083]
[1765756224360,0.001,3061.9,3061.8,16.41711083]
[1765756224560,0.001,3061.9,3061.8,16.11197683]
[1765756224758,0.001,3061.9,3061.8,11.09010283]
[1765756224943,0.001,3061.9,3061.8,5.79931362]
[1765756225147,0.001,3061.9,3061.8,9.18741362]
[1765756225344,0.001,3061.9,3061.8,9.64061083]
[1765756226057,0.001,3061.9,3061.8,21.15584851]
[1765756226748,0.001,3061.9,3061.8,20.72530883]
[1765756226950,0.001,3061.9,3061.8,25.32699483]
[1765756227634,0.001,3062.3,3062.1,0.405504]
[1765756227866,0.001,3062.3,3062.2,7.7177555]
[1765756228065,0.001,3062.3,3062.2,3.60271388]
[1765756228363,0.001,3062.3,3062.2,6.8683399]
[1765756229064,0.001,3062.3,3062.2,5.8596399]
[1765756229560,0.001,3062.3,3062.2,6.3433399]
[1765756231064,0.001,3062.3,3062.2,4.22046061]
[1765756231065,0.1373,3062.3,3062.2,4.22046061]
[1765756231266,0.1373,3062.3,3062.2,3.26562602]
[1765756231447,0.1373,3062.3,3062.2,3.84610131]
[1765756232465,0.001,3062.3,3062.2,3.84610131]
[1765756233032,0.001,3062.3,3062.2,4.79020131]
[1765756233345,0.001,3062.3,3062.2,6.11784727]
[1765756233664,0.001,3062.3,3062.2,6.97654848]
[1765756233851,0.001,3062.3,3062.2,11.21869518]
[1765756234245,0.001,3062.3,3062.2,12.10243207]
[1765756234572,0.001,3062.3,3062.2,11.67189239]
[1765756234778,0.001,3062.3,3062.2,11.21869518]
[1765756235135,0.001,3062.3,3062.2,11.67189239]
[1765756239945,0.001,3062.3,3062.2,31.17691607]
[1765756241180,0.001,3062.3,3062.2,30.74637639]
[1765756241377,0.001,3062.3,3062.2,35.23306802]
[1765756241980,0.001,3063.2,3062.3,20.06046329]
[1765756242222,0.001,3063.2,3063.1,6.12587092]
[1765756242352,0.001,3063.2,3063.1,6.65087092]
[1765756242547,0.001,3063.2,3063.1,7.58776813]
[1765756243047,0.001,3063.2,3063.1,8.24481569]
[1765756243781,0.1373,3063.2,3063.1,9.26233743]
[1765756244089,0.001,3063.2,3063.1,10.29411912]
[1765756244260,0.001,3063.2,3063.1,10.77781912]
[1765756246086,0.001,3063.2,3063.1,11.23101633]
[1765756246580,0.001,3063.6,3063.2,0.98597929]
[1765756246786,0.001,3063.6,3063.5,11.66503192]
[1765756247092,0.001,3063.6,3063.5,24.27741313]
[1765756247290,0.001,3063.6,3063.5,24.76111313]
[1765756247656,0.001,3063.6,3063.5,15.11319992]
[1765756247858,0.001,3063.6,3063.5,20.01765457]
[1765756248598,0.001,3063.6,3063.5,30.92070957]
[1765756248892,0.001,3063.6,3063.5,15.23758757]
[1765756249664,0.001,3063.6,3063.5,20.43477736]
[1765756249963,0.001,3063.6,3063.5,10.50382436]
[1765756250175,0.001,3063.6,3063.5,16.14857357]
[1765756250374,0.001,3063.6,3063.5,17.03777757]
[1765756250572,0.001,3063.6,3063.5,16.55407757]
[1765756250762,0.001,3063.6,3063.5,16.10088036]
[1765756251093,0.1373,3063.6,3063.5,10.44892836]
[1765756251392,0.1373,3063.6,3063.5,10.04342436]
[1765756251771,0.1373,3063.6,3063.5,10.44892836]
[1765756252397,0.1373,3063.6,3063.5,10.04342436]
[1765756252558,0.1373,3063.6,3063.5,3.26424024]
[1765756252976,0.2736,3063.6,3063.5,3.84471553]
[1765756255177,0.2736,3063.6,3063.5,3.26424024]
[1765756256192,0.2736,3063.6,3063.2,0.58047529]
[1765756256489,0.1363,3063.5,3063.2,0.58047529]
[1765756256688,0.1363,3063.3,3063.2,0.58047529]